bitfinex/quotes_ETHUSD_20251018
["timestamp","ask_amount","ask_price","bid_price","bid_amount"]
[1760804467866,0.04492107,3880.5,3880.3,0.4304]
[1760804468038,0.04492107,3880.5,3880.1,0.2203]
[1760804468461,0.04492107,3880.5,3880.1,2.79751044]
[1760804468674,0.04492107,3880.5,3880.1,3.22791044]
[1760804469094,0.04492107,3880.5,3880.1,2.79751044]
[1760804469598,0.04492107,3880.5,3880.2,0.4304]
[1760804470474,0.04492107,3880.5,3880.3,3.00747756]
[1760804470865,0.04492107,3880.5,3880.3,0.4304]
[1760804471065,0.04492107,3880.5,3880.3,3.00747259]
[1760804471293,0.04492107,3880.5,3880.4,0.4304]
[1760804472078,0.04492107,3880.5,3880.4,3.03322444]
[1760804472286,0.04492107,3880.5,3880.4,3.59052432]
[1760804473566,0.04492107,3880.5,3880.4,3.61629485]
[1760804473881,0.04492107,3880.5,3880.4,3.74509485]
[1760804474906,0.04492107,3880.5,3880.4,3.71932432]
[1760804475199,0.002,3880.6,3880.5,2.5769875]
[1760804475397,0.002,3880.6,3880.5,3.87974504]
[1760804475712,0.002,3880.6,3880.5,8.48999882]
[1760804475909,0.002,3880.6,3880.5,8.46422895]
[1760804479328,0.002,3880.6,3880.5,10.19222895]
[1760804485425,0.002,3880.6,3880.5,9.76182895]
[1760804486942,0.002,3880.6,3880.5,10.19222895]
[1760804491162,0.002,3880.6,3880.5,5.60774504]
[1760804492862,0.4507,3880.6,3880.5,5.60774504]
[1760804493063,0.4507,3880.6,3880.5,4.3049875]
[1760804495941,0.4507,3880.6,3880.5,2.5769875]
[1760804496352,0.4507,3880.6,3880.4,0.1288]
[1760804496658,0.4507,3880.6,3880.4,2.70580717]
[1760804496854,0.4487,3880.5,3880.4,2.70580717]
[1760804498958,0.4487,3880.5,3880.4,0.1288]
[1760804499175,4.60278391,3880.5,3879.2,0.2153]
[1760804499328,0.49361925,3880.5,3880.0,0.1288]
[1760804499945,0.4487,3880.4,3879.7,2.57751067]
[1760804500159,0.7939,3880.3,3879.9,2.57734315]
[1760804500346,0.7939,3880.3,3880.0,2.57730433]
[1760804500347,0.3454,3880.3,3880.0,2.57730433]
[1760804500534,0.4485,3880.2,3880.0,2.57730433]
[1760804500734,0.4485,3880.1,3879.9,2.57736762]
[1760804501562,0.3454,3880.3,3879.7,2.70631659]
[1760804501766,0.4485,3880.0,3879.7,2.70631659]
[1760804502088,0.4485,3880.0,3879.8,2.57744752]
[1760804502281,0.4485,3880.0,3879.7,0.1288]
[1760804502480,0.4485,3879.9,3879.7,2.70631251]
[1760804502635,0.6652,3879.8,3879.7,0.1288]
[1760804503632,0.6652,3879.8,3879.7,2.70631888]
[1760804505036,0.04492238,3879.9,3879.8,2.57745244]
[1760804505558,0.04492238,3879.9,3879.7,0.1288]
[1760804505559,0.71252238,3879.9,3879.7,0.1288]
[1760804505805,0.4579,3879.8,3879.7,0.1288]
[1760804506682,0.4579,3879.8,3879.7,2.70631888]
[1760804507506,0.4579,3879.8,3879.7,0.1288]
[1760804507704,0.25212238,3879.9,3879.7,0.1288]
[1760804507879,0.25212238,3879.9,3879.7,2.70631888]
[1760804508073,0.25212238,3879.9,3879.8,2.57745244]
[1760804508810,0.04492238,3879.9,3879.8,2.57745244]
[1760804509473,0.50032238,3879.9,3879.7,0.1288]
[1760804509671,0.453,3879.8,3879.7,0.1288]
[1760804510172,0.25712238,3879.9,3879.7,2.70626888]
[1760804510393,0.25712238,3879.9,3879.8,2.57745244]
[1760804510802,0.04492238,3879.9,3879.8,2.57745244]
[1760804511605,0.04492238,3879.9,3879.8,3.15275546]
[1760804511807,0.04492238,3879.9,3879.8,3.62195546]
[1760804512184,0.04492238,3879.9,3879.8,3.15275546]
[1760804512776,0.04492238,3879.9,3879.8,2.57745244]
[1760804512982,0.04492238,3879.9,3879.7,2.70629747]
[1760804513182,0.04492238,3879.9,3879.8,2.57745244]
[1760804514616,0.49322238,3879.9,3879.7,0.1288]
[1760804514927,0.49322238,3879.9,3879.8,2.57745244]
[1760804515127,0.49322238,3879.9,3879.7,0.1288]
[1760804515297,0.4481,3879.8,3879.7,0.1288]
[1760804515696,0.4481,3879.8,3879.7,1.8568]
[1760804516040,0.4481,3879.8,3879.7,0.1288]
[1760804516395,0.4481,3879.8,3879.7,2.70631888]
[1760804516596,0.4481,3879.8,3879.7,0.1288]
[1760804517534,0.26172238,3879.9,3879.7,0.1288]
[1760804517845,0.70982238,3879.9,3879.7,2.70631442]
[1760804519442,0.71182238,3879.9,3879.7,2.70631442]
[1760804519637,0.71182238,3879.9,3879.7,0.1288]
[1760804519848,0.04692238,3879.9,3879.8,2.57745244]
[1760804520353,0.04692238,3879.9,3879.8,3.17852936]
[1760804520643,0.002,3879.9,3879.8,3.64772936]
[1760804520886,0.002,3879.9,3879.8,3.62195484]
[1760804521234,0.002,3879.9,3879.8,3.15275484]
[1760804521971,0.002,3879.9,3879.8,3.62195484]
[1760804523269,0.002,3879.9,3879.8,3.15275484]
[1760804524367,0.002,3879.9,3879.8,2.57745244]
[1760804525676,0.002,3879.9,3879.8,2.73202696]
[1760804526274,0.002,3879.9,3879.8,3.18352696]
[1760804527470,0.002,3879.9,3879.1,0.2169]
[1760804527676,0.002,3879.9,3879.6,2.57753591]
[1760804527874,0.002,3879.9,3879.5,2.68097776]
[1760804528081,0.04692189,3879.9,3879.5,2.68097776]
[1760804528390,0.48822189,3879.9,3879.6,2.5775701]
[1760804528592,0.48822189,3879.9,3879.3,3.01908382]
[1760804528768,0.48822189,3879.9,3879.6,2.57758122]
[1760804528970,0.48822189,3879.9,3879.7,2.57751135]
[1760804532195,0.04692189,3879.9,3879.8,2.57745244]
[1760804532975,0.04692189,3879.9,3879.7,2.5774967]
[1760804533695,0.04692189,3879.9,3879.8,2.60322696]
[1760804533902,0.04692189,3879.9,3879.8,2.57745244]
[1760804534900,0.04692189,3879.9,3879.7,2.57749889]
[1760804535087,0.04692189,3879.9,3879.8,2.57745244]
[1760804535284,0.04692189,3879.9,3879.6,0.447]
[1760804535483,0.04692189,3879.9,3879.8,2.57745244]
[1760804535912,0.04692189,3879.9,3879.7,2.57750431]
[1760804536999,0.04692189,3879.9,3879.7,2.57750139]
[1760804537510,0.04692189,3879.9,3879.8,0.1288]
[1760804538980,0.04692189,3879.9,3879.8,2.70625244]
[1760804539200,0.04692189,3879.9,3879.8,0.48246774]
[1760804539405,0.04692189,3879.9,3879.8,0.1288]
[1760804542015,0.70902189,3879.9,3879.8,0.1288]
[1760804542713,0.70902189,3879.9,3879.3,0.4413]
[1760804542903,0.70902189,3879.9,3879.3,0.1288]
[1760804545009,0.6641,3879.9,3879.3,0.1288]
[1760804547820,0.79405354,3879.9,3879.3,0.1288]
[1760804548004,0.79405354,3879.9,3879.1,0.001]
[1760804548005,4.98299527,3879.8,3879.1,0.001]
[1760804548208,0.1288,3879.4,3879.1,0.001]
[1760804548722,0.4391,3879.3,3879.1,0.001]
[1760804551920,0.1737308,3879.4,3879.1,0.001]
[1760804552118,0.4391,3879.2,3879.1,0.001]
[1760804554024,0.1737308,3879.4,3879.1,0.001]
[1760804554212,0.4391,3879.2,3879.1,0.001]
[1760804559401,5.02792607,3879.4,3879.1,0.001]
[1760804559696,0.4391,3879.2,3879.1,0.001]
[1760804565715,2.8007,3879.2,3879.1,0.001]
[1760804566415,14.619407,3879.2,3879.1,0.001]
[1760804567119,15.02381782,3879.2,3879.1,0.001]
[1760804567317,23.61327892,3879.2,3879.1,0.001]
[1760804567526,22.09366892,3879.2,3879.1,0.001]
[1760804567709,10.10198592,3879.2,3879.1,0.001]
[1760804568337,8.51557482,3879.2,3879.1,0.001]
[1760804568540,9.53103592,3879.2,3879.1,0.001]
[1760804569437,14.11103692,3879.2,3879.1,0.001]
[1760804569848,11.21611192,3879.2,3879.1,0.001]
[1760804570328,12.80004792,3879.2,3879.1,0.001]
[1760804570848,5.58854682,3879.2,3879.1,0.001]
[1760804571547,8.91968482,3879.2,3879.1,0.001]
[1760804572047,5.91415382,3879.2,3879.1,0.001]
[1760804572345,3.20511082,3879.2,3879.1,0.001]
[1760804572748,6.13368382,3879.2,3879.1,0.001]
[1760804573142,3.20711082,3879.2,3879.1,0.001]
[1760804573311,6.637089,3879.2,3879.1,0.001]
[1760804573512,6.059092,3879.2,3879.1,0.001]
[1760804575048,6.504992,3879.2,3879.1,0.001]
[1760804576762,6.90939462,3879.2,3879.1,0.001]
[1760804578955,6.47029462,3879.2,3879.1,0.001]
[1760804579261,6.46349462,3879.2,3879.1,0.001]
[1760804580266,1.04000262,3879.2,3879.1,0.001]
[1760804580469,12.34050575,3879.2,3879.1,0.001]
[1760804580671,33.32765475,3879.2,3879.1,0.001]
[1760804580961,27.71452482,3879.2,3879.1,0.001]
[1760804581163,26.06056607,3878.8,3878.7,0.001]
[1760804581361,36.97525711,3878.8,3878.7,0.001]
[1760804581528,36.11158911,3878.8,3878.7,0.001]
[1760804581722,36.11158911,3878.8,3877.0,0.3491]
[1760804581723,0.6336,3878.4,3877.4,0.2146]
[1760804581930,15.657731,3878.5,3877.4,0.2146]
[1760804581931,0.1288,3877.7,3877.4,0.2146]
[1760804582229,4.15528913,3877.8,3877.5,0.4459]
[1760804582456,4.15528913,3877.8,3877.6,0.4459]
[1760804583852,4.20023456,3877.8,3877.6,0.4459]
[1760804585556,4.15528913,3877.8,3877.6,0.4459]
[1760804586757,0.1288,3877.6,3877.4,0.2146]
[1760804586956,4.15528913,3877.8,3877.4,0.2146]
[1760804587136,0.1288,3877.4,3877.3,0.4581]
[1760804588256,4.28408913,3877.4,3876.4,0.2203]
[1760804588458,4.15528913,3876.8,3876.5,0.4615]
[1760804588622,4.15528913,3876.8,3876.5,0.4581]
[1760804589764,4.20024211,3876.8,3876.5,0.4581]
[1760804590259,4.20024211,3876.8,3876.0,0.2159]
[1760804590557,4.15528913,3876.2,3876.0,0.2159]
[1760804591130,4.15528913,3876.2,3876.0,0.674]
[1760804591330,4.20024783,3876.2,3876.1,0.4581]
[1760804592156,4.20024783,3876.2,3876.1,0.4591]
[1760804592564,4.20024783,3876.2,3876.1,0.001]
[1760804592763,0.0449587,3876.2,3876.1,0.001]
[1760804594332,4.20024783,3876.2,3876.1,0.001]
[1760804594565,2.4065587,3876.2,3876.1,0.001]
[1760804594861,5.92824783,3876.2,3876.1,0.001]
[1760804595457,5.88328913,3876.2,3876.1,0.001]
[1760804595651,5.88328913,3876.2,3875.7,0.32423927]
[1760804595851,5.88328913,3876.2,3875.2,0.2181]
[1760804596045,1.728,3876.2,3876.1,0.0842]
[1760804596245,1.728,3876.2,3875.6,2.58023899]
[1760804596642,1.728,3876.2,3875.5,2.58030989]
[1760804596840,1.728,3876.2,3875.6,2.58023176]
[1760804597479,5.88328913,3876.2,3875.6,2.58023176]
[1760804597786,0.6336,3876.8,3875.3,0.4581]
[1760804597787,4.15528913,3875.8,3875.3,0.4581]
[1760804597956,4.15528913,3875.8,3875.2,0.2181]
[1760804598156,4.15528913,3875.8,3875.3,0.4581]
[1760804598463,0.1288,3875.4,3875.3,2.58044538]
[1760804598852,0.1288,3875.4,3875.3,3.03854538]
[1760804599031,0.1288,3875.4,3875.3,0.4581]
[1760804600976,0.04497021,3875.7,3875.3,0.4581]
[1760804600977,0.04497021,3875.7,3875.3,3.6483426]
[1760804601268,0.17377021,3875.7,3875.4,0.4581]
[1760804601449,0.17377021,3875.7,3875.5,3.03834842]
[1760804601843,0.17377021,3875.7,3875.3,3.16441592]
[1760804602045,0.17377021,3875.7,3875.3,3.62251592]
[1760804602256,0.17377021,3875.7,3875.3,1.04209277]
[1760804602455,0.17377021,3875.7,3875.2,0.2181]
[1760804603045,0.17377021,3875.7,3875.3,0.4581]
[1760804603242,0.17377021,3875.7,3875.4,0.4581]
[1760804603461,0.17377021,3875.7,3875.2,0.2181]
[1760804603662,0.1288,3875.4,3875.0,0.00259]
[1760804604070,0.1288,3875.4,3875.0,0.46069]
[1760804604377,0.1288,3875.4,3875.1,0.6762]
[1760804604543,0.1288,3875.4,3875.1,0.2181]
[1760804608544,0.1288,3875.4,3875.0,0.00259]
[1760804608545,4.15528913,3875.4,3875.0,0.00259]
[1760804608747,0.1288,3875.1,3875.0,0.00259]
[1760804609376,4.28408913,3875.1,3875.0,0.00259]
[1760804609694,7.95203208,3875.1,3875.0,0.00259]
[1760804610046,45.05905583,3875.1,3875.0,0.00259]
[1760804610357,32.58179583,3875.1,3875.0,0.00259]
[1760804610566,0.6336,3874.6,3873.3,0.2151]
[1760804610921,4.28408913,3873.4,3873.0,0.0842]
[1760804611245,0.1288,3873.0,3872.7,0.0842]
[1760804611484,0.1288,3873.0,3872.7,0.5423]
[1760804611667,4.61148913,3873.4,3872.7,0.5423]
[1760804611668,0.4562,3873.4,3872.7,0.5423]
[1760804611869,4.15528913,3873.1,3872.7,0.5423]
[1760804612058,0.04499665,3873.5,3872.8,0.4581]
[1760804612246,0.04499665,3873.5,3873.4,2.58171115]
[1760804612447,0.04499665,3873.5,3873.4,3.03981115]
[1760804612646,0.04499665,3873.5,3873.4,3.06562826]
[1760804612990,0.4562,3874.9,3873.5,1.728]
[1760804613153,0.0449892,3874.3,3873.9,6.73662454]
[1760804613352,0.0449892,3874.3,3874.2,2.67577804]
[1760804613766,0.0449892,3874.3,3874.2,6.83106717]
[1760804614080,0.0449892,3874.3,3874.2,3.13387804]
[1760804614290,0.0449892,3874.3,3873.5,2.5816445]
[1760804614582,0.0449892,3874.3,3873.3,0.2151]
[1760804614778,0.4481,3874.2,3873.3,0.2151]
[1760804615362,0.4481,3874.2,3873.1,2.5819045]
[1760804615589,5.658659,3874.0,3872.7,4.23948913]
[1760804615752,0.4481,3873.9,3872.7,4.23948913]
[1760804615956,0.4481,3873.9,3873.0,2.58191607]
[1760804616256,0.4481,3873.8,3872.7,0.0842]
[1760804616460,0.4481,3873.8,3872.7,2.66636978]
[1760804616659,0.4481,3873.8,3872.7,0.0842]
[1760804616901,0.4481,3873.7,3872.7,0.0842]
[1760804617057,0.4481,3873.7,3873.0,2.5819721]
[1760804617392,0.4481,3873.7,3872.8,2.58211113]
[1760804618088,0.4481,3873.7,3873.1,2.58188627]
[1760804618274,0.4481,3873.7,3872.9,2.58204446]
[1760804618501,0.4481,3873.7,3873.1,0.2151]
[1760804618838,0.04499622,3873.6,3873.1,0.2151]
[1760804619137,0.04499622,3873.6,3873.1,2.79700312]
[1760804619734,0.04499622,3873.6,3873.1,0.2151]
[1760804620590,0.4481,3873.5,3872.8,0.4538]
[1760804621025,0.4481,3873.5,3873.0,2.58196017]
[1760804621581,0.04499622,3873.6,3873.1,2.58190483]
[1760804621918,0.1288,3873.3,3873.0,2.58192608]
[1760804622079,0.1288,3873.3,3873.0,3.03572608]
[1760804622287,0.1288,3873.3,3873.1,2.58190261]
[1760804622927,0.1288,3873.3,3873.0,0.4538]
[1760804623510,0.1288,3873.3,3873.0,3.0357674]
[1760804623814,0.1288,3873.3,3873.2,2.58184446]
[1760804624426,0.1288,3873.3,3873.1,3.25079693]
[1760804624629,0.1288,3873.3,3873.1,0.2151]
[1760804624795,0.1288,3873.3,3872.8,0.4538]
[1760804625121,0.1288,3873.3,3872.9,2.58202666]
[1760804625633,0.0449963,3873.2,3872.8,0.4538]
[1760804625789,0.0449963,3873.2,3872.7,0.0842]
[1760804625989,0.0449963,3873.2,3872.4,1.728]
[1760804625990,0.4481,3873.1,3872.4,1.728]
[1760804626216,0.1288,3873.0,3872.6,1.728]
[1760804626409,0.1288,3873.0,3872.6,4.31022605]
[1760804626624,0.1288,3873.0,3872.6,4.76402605]
[1760804626838,0.1288,3873.0,3872.8,2.58205914]
[1760804627130,0.1288,3873.0,3872.9,2.58204446]
[1760804627330,0.1288,3873.0,3872.8,2.58208688]
[1760804627633,0.1288,3873.0,3872.9,2.58204446]
[1760804627831,0.1288,3873.0,3872.8,2.58209666]
[1760804628199,0.1288,3873.0,3872.7,2.58215853]
[1760804628622,0.1288,3873.0,3872.7,3.03595853]
[1760804628998,0.1288,3873.0,3872.8,2.58209543]
[1760804629510,0.1288,3873.0,3872.7,3.03596768]
[1760804629710,0.1288,3873.0,3872.8,2.58209461]
[1760804629917,0.1288,3873.0,3872.9,2.58204446]
[1760804630397,0.1288,3873.0,3872.7,3.0359273]
[1760804630602,0.1288,3873.0,3872.8,2.58208963]
[1760804630802,0.1288,3873.0,3872.9,2.58204446]
[1760804631615,0.0449963,3873.2,3873.1,2.58191113]
[1760804631816,0.0449963,3873.2,3873.1,2.79701113]
[1760804632015,0.0449963,3873.2,3873.1,3.25081113]
[1760804632835,0.0449963,3873.2,3873.1,2.79701113]
[1760804633006,0.0449963,3873.2,3873.1,3.25081113]
[1760804634839,6.359,3873.4,3873.3,2.58177781]
[1760804636138,6.359,3873.4,3873.1,2.79701113]
[1760804636139,0.1288,3873.6,3873.2,2.58183706]
[1760804636341,0.1288,3873.6,3873.5,2.5816445]
[1760804636540,0.1288,3873.6,3872.9,0.1288]
[1760804636740,0.5769,3873.6,3872.9,0.1288]
[1760804637106,0.1288,3873.6,3873.4,2.58170131]
[1760804637340,0.1288,3873.6,3873.4,2.58164632]
[1760804637542,0.1288,3873.6,3873.5,2.5816445]
[1760804638014,0.85305813,3873.9,3872.8,3.03590463]
[1760804638343,0.85305813,3873.9,3873.1,2.79699912]
[1760804638637,0.85305813,3873.9,3873.1,2.7969978]
[1760804638847,0.85305813,3873.9,3873.1,0.2151]
[1760804639010,0.85305813,3873.9,3873.2,2.58184446]
[1760804639212,0.4481,3873.8,3872.3,2.58241542]
[1760804639441,0.49309581,3873.8,3872.5,1.18089581]
[1760804639623,0.49309581,3873.8,3873.2,2.58182708]
[1760804639819,0.49309581,3873.8,3872.8,0.4538]
[1760804640024,0.04499581,3873.8,3873.3,2.58173139]
[1760804640241,0.04499581,3873.8,3873.3,0.4538]
[1760804640456,0.4481,3873.7,3872.7,2.58215414]
[1760804640760,0.4481,3873.6,3872.9,2.58202638]
[1760804640915,0.4481,3873.6,3873.0,2.58192289]
[1760804641554,0.4481,3873.6,3873.1,2.58189014]
[1760804642245,0.4481,3873.6,3873.2,2.58184166]
[1760804642409,0.04499581,3873.8,3873.2,2.58184166]
[1760804642609,0.49309581,3873.8,3873.1,2.58190014]
[1760804643136,0.04499581,3873.8,3873.2,0.6689]
[1760804643331,0.04499581,3873.8,3872.7,0.84515926]
[1760804643535,0.49309581,3873.8,3873.0,2.79702332]
[1760804644458,0.49309581,3873.8,3873.1,2.58191022]
[1760804645034,0.49309581,3873.8,3873.1,2.5819105]
[1760804645229,0.62304935,3873.8,3873.0,0.2151]
[1760804645470,0.49309581,3873.8,3872.6,2.58222625]
[1760804645671,0.49309581,3873.8,3872.4,3.01357144]
[1760804645672,0.6336,3872.6,3872.4,0.001]
[1760804645880,2.3616,3872.6,3872.4,0.001]
[1760804646035,0.6336,3872.5,3872.4,0.001]
[1760804646235,1.0942,3872.5,3872.4,0.001]
[1760804647735,0.2199,3872.7,3872.4,0.001]
[1760804648361,0.4606,3872.6,3872.4,0.001]
[1760804648735,0.50560649,3872.6,3872.4,0.001]
[1760804648931,0.04500649,3872.6,3872.4,0.001]
[1760804649140,7.50974268,3872.5,3872.4,0.001]
[1760804651479,11.53419568,3872.5,3872.4,0.001]
[1760804651678,2.3616,3872.5,3872.4,0.001]
[1760804651968,7.50974268,3872.5,3872.4,0.001]
[1760804652374,11.34401068,3872.5,3872.4,0.001]
[1760804652579,13.92632184,3872.5,3872.4,0.001]
[1760804654047,11.34401068,3872.5,3872.4,0.001]
[1760804654488,7.50974268,3872.5,3872.4,0.001]
[1760804654895,10.09205384,3872.5,3872.4,0.001]
[1760804655050,26.20699084,3872.5,3872.4,0.001]
[1760804655253,25.85956784,3872.5,3872.4,0.001]
[1760804655598,10.09205384,3872.5,3872.4,0.001]
[1760804655748,16.67643384,3872.5,3872.4,0.001]
[1760804656379,0.6336,3871.9,3871.2,0.88921593]
[1760804656561,4.68754268,3871.5,3871.2,0.88921593]
[1760804658655,0.4606,3871.4,3871.2,0.88921593]
[1760804658858,0.4606,3871.3,3871.2,0.88921593]
[1760804659353,1.728,3871.4,3871.2,0.88921593]
[1760804659891,2.23360224,3871.4,3871.2,0.88921593]
[1760804660102,0.4606,3871.3,3871.2,0.88921593]
[1760804660258,1.77300224,3871.4,3871.2,0.88921593]
[1760804660754,2.23360224,3871.4,3871.2,0.88921593]
[1760804660957,0.4606,3871.3,3871.2,0.88921593]
[1760804661183,1.0942,3871.3,3871.2,0.88921593]
[1760804663771,0.6336,3871.3,3871.2,0.88921593]
[1760804665796,1.0942,3871.3,3871.2,0.88921593]
[1760804666173,0.6336,3871.3,3871.2,0.88921593]
[1760804667364,14.401472,3871.3,3871.2,0.88921593]
[1760804667562,5.617267,3871.3,3871.2,0.88921593]
[1760804667778,2.3616,3871.3,3871.2,0.88921593]
[1760804669672,1.728,3871.3,3871.2,0.88921593]
[1760804672208,1.728,3871.3,3871.2,1.32711593]
[1760804673981,1.728,3871.3,3871.2,0.88921593]
[1760804674773,1.77302458,3871.3,3871.2,0.88921593]
[1760804675190,1.77302458,3871.3,3871.2,1.32201593]
[1760804675373,1.77302458,3871.3,3871.2,0.88921593]
[1760804675574,0.218,3872.1,3871.2,0.88921593]
[1760804675575,6.359,3872.2,3871.3,2.58311161]
[1760804675807,0.1288,3871.5,3871.4,0.4328]
[1760804676007,6.359,3872.2,3871.4,1.09961247]
[1760804676207,0.1288,3871.9,3871.7,2.58279422]
[1760804676406,0.1288,3871.9,3871.3,0.1288]
[1760804676407,0.1288,3871.9,3871.8,0.5418]
[1760804676582,0.1288,3871.9,3871.8,0.109]
[1760804676773,0.1288,3871.9,3871.3,0.1288]
[1760804676975,0.1288,3871.6,3871.2,1.32201593]
[1760804677175,0.1288,3871.6,3871.3,0.4328]
[1760804677510,1.728,3871.9,3871.2,0.88921593]
[1760804677707,0.1288,3871.4,3871.2,0.88921593]
[1760804678579,0.4458,3871.3,3871.2,0.88921593]
[1760804678780,0.17382438,3871.4,3871.2,0.88921593]
[1760804678981,0.61962438,3871.4,3871.2,0.88921593]
[1760804679194,0.17382438,3871.4,3871.2,0.88921593]
[1760804680018,0.61962438,3871.4,3871.2,0.88921593]
[1760804680179,0.17382438,3871.4,3871.2,0.88921593]
[1760804680379,0.61962438,3871.4,3871.2,0.88921593]
[1760804680695,0.17382438,3871.4,3871.2,0.88921593]
[1760804681510,0.17382438,3871.4,3871.3,0.4328]
[1760804681712,0.04502438,3871.4,3871.3,3.68273377]
[1760804682593,0.04502438,3871.4,3871.3,0.4328]
[1760804684214,0.04502438,3871.4,3871.2,0.88921593]
[1760804684384,0.04502438,3871.4,3871.3,3.01591161]
[1760804684781,0.04502438,3871.4,3871.3,3.04174272]
[1760804685018,0.1288,3872.0,3871.7,2.58283273]
[1760804685324,0.1288,3872.0,3871.8,0.4328]
[1760804687838,0.1288,3872.0,3871.3,0.1288]
[1760804688118,0.1288,3872.3,3872.0,2.58264462]
[1760804688325,0.1288,3872.3,3872.1,0.109]
[1760804688511,0.1288,3872.3,3872.1,0.5418]
[1760804688686,0.1738119,3872.3,3872.1,0.5418]
[1760804689028,0.1738119,3872.3,3872.1,3.12437067]
[1760804689521,0.1738119,3872.3,3872.1,2.69157067]
[1760804689694,0.1738119,3872.3,3872.2,0.4328]
[1760804690096,0.1738119,3872.3,3872.1,2.69157067]
[1760804690418,0.1738119,3872.3,3872.2,3.01531123]
[1760804690419,0.0450119,3872.3,3872.2,3.01531123]
[1760804691103,0.0450119,3872.3,3872.2,3.14411123]
[1760804692388,0.002,3872.4,3872.3,2.58244454]
[1760804692605,0.002,3872.4,3872.2,0.1288]
[1760804693188,0.002,3872.4,3872.3,2.58244454]
[1760804693815,0.002,3872.4,3872.3,3.01524454]
[1760804694234,0.002,3872.4,3872.3,3.59880574]
[1760804696001,0.002,3872.4,3872.3,3.16600574]
[1760804696197,0.002,3872.4,3872.3,3.59880574]
[1760804700326,0.002,3872.4,3872.3,0.5835612]
[1760804700527,0.002,3872.4,3872.2,0.1288]
[1760804700894,0.04700805,3872.4,3872.2,0.1288]
[1760804701208,0.04700805,3872.4,3872.3,2.58244454]
[1760804702336,0.04700805,3872.4,3872.2,2.71130266]
[1760804702690,0.04700805,3872.4,3872.3,2.58244454]
[1760804702888,0.04700805,3872.4,3872.3,3.13765779]
[1760804703110,0.002,3872.4,3872.3,3.54463335]
[1760804703493,0.002,3872.4,3872.3,3.11183335]
[1760804703894,0.002,3872.4,3872.3,3.54463335]
[1760804707000,0.002,3872.4,3872.3,3.11183335]
[1760804707236,0.002,3872.4,3872.3,3.57623335]
[1760804707614,0.002,3872.4,3872.3,3.60205779]
[1760804708801,0.002,3872.4,3872.3,3.57623335]
[1760804709643,0.002,3872.4,3872.3,3.11183335]
[1760804709819,0.002,3872.4,3872.3,3.57623335]
[1760804711535,0.002,3872.4,3872.3,3.11183335]
[1760804712741,0.002,3872.4,3872.3,7.77219191]
[1760804713040,0.002,3872.4,3872.3,3.57623335]
[1760804713410,0.002,3872.4,3872.3,6.30123335]
[1760804713641,0.002,3872.4,3872.3,3.57623335]
[1760804715849,0.002,3872.4,3872.3,3.11183335]
[1760804716253,0.002,3872.4,3872.3,3.70503335]
[1760804719324,0.002,3872.4,3872.3,3.24063335]
[1760804720851,0.002,3872.4,3872.3,3.70503335]
[1760804721054,0.002,3872.4,3872.3,3.24063335]
[1760804722755,0.002,3872.4,3872.3,3.73085779]
[1760804723253,0.002,3872.4,3872.3,5.45885779]
[1760804723454,0.002,3872.4,3872.3,5.56183335]
[1760804723957,0.002,3872.4,3872.3,6.19643335]
[1760804724261,0.002,3872.4,3872.3,10.49526673]
[1760804724426,0.002,3872.4,3872.3,13.22026673]
[1760804724628,0.002,3872.4,3872.3,6.19643335]
[1760804724848,0.002,3872.4,3872.3,5.73203335]
[1760804725255,0.002,3872.4,3872.3,6.19643335]
[1760804728724,0.002,3872.4,3872.3,34.58607835]
[1760804729169,0.002,3872.4,3872.3,14.68883635]
[1760804729465,0.002,3872.4,3872.3,9.80860835]
[1760804730058,0.002,3872.4,3872.3,6.19643335]
[1760804730466,0.002,3872.4,3872.3,10.80673935]
[1760804730854,0.002,3872.4,3872.3,6.19643335]
[1760804731185,0.002,3872.4,3872.3,13.24591635]
[1760804731472,0.002,3872.4,3872.3,17.41605047]
[1760804731666,0.6581,3874.1,3872.3,17.41605047]
[1760804731667,0.2199,3874.1,3874.0,2.5813113]
[1760804731962,0.1288,3874.9,3874.6,2.58091157]
[1760804732263,0.68497604,3874.7,3874.6,2.58091157]
[1760804732564,0.71828981,3874.7,3874.6,2.58091157]
[1760804733130,0.71828981,3874.7,3874.5,2.5809595]
[1760804733455,0.4382,3874.6,3874.5,2.5809595]
[1760804733836,0.28008981,3874.7,3874.6,2.58091157]
[1760804734165,0.6584,3874.9,3874.8,2.58077836]
[1760804734533,0.6584,3874.9,3874.8,2.70957836]
[1760804735158,0.2202,3874.9,3874.8,2.70957836]
[1760804735349,0.002,3875.0,3874.9,2.58071176]
[1760804735945,0.4592,3875.0,3874.9,2.58071176]
[1760804736483,0.4592,3875.0,3874.8,0.1288]
[1760804736784,0.4592,3875.0,3874.9,2.58071176]
[1760804737965,0.002,3875.0,3874.9,2.58071176]
[1760804738175,0.4592,3875.0,3874.9,2.58071176]
[1760804738559,0.4592,3875.0,3874.9,3.10974711]
[1760804738759,0.002,3875.0,3874.9,3.10974711]
[1760804738969,0.4592,3875.0,3874.9,3.10974711]
[1760804740268,0.4592,3875.0,3874.9,0.52903535]
[1760804740502,0.4592,3875.0,3874.8,0.1288]
[1760804740707,0.2264,3874.9,3874.8,0.1288]
[1760804741004,0.2264,3874.9,3874.8,2.70957836]
[1760804741202,0.2264,3874.9,3874.0,1.19142848]
[1760804741203,0.6836,3874.9,3874.0,1.19142848]
[1760804741509,0.4572,3874.8,3874.6,0.1288]
[1760804741802,0.4572,3874.8,3874.7,2.58084496]
[1760804742368,0.4572,3874.8,3874.6,0.1288]
[1760804742369,0.4572,3874.8,3874.6,2.709673]
[1760804742576,0.2264,3874.9,3874.6,0.1288]
[1760804742577,0.4572,3874.7,3874.6,0.1288]
[1760804742875,0.4572,3874.7,3874.6,2.70971157]
[1760804743514,0.4572,3874.7,3874.6,0.1288]
[1760804743700,0.4572,3874.7,3874.6,2.70971157]
[1760804745502,0.4572,3874.7,3873.6,4.30957471]
[1760804745503,0.4572,3874.7,3873.4,5.19070887]
[1760804745821,0.1288,3874.4,3873.9,2.5813328]
[1760804745992,0.4572,3874.3,3873.9,2.5813328]